Workbook

Sheet PORTADA
B11: www.acfmsc.com
D17: 523698741
G145: Rangenom67
K198: Len@25
P325: 67010623

Sheet MENU (hidden)
B7: DESCRIPCIÓN | C7: NOMBRE DE LA HOJA
B8: Importa archivos XML emitidos de tipo ingreso y egreso | C8: CFDIE
B9: Importar archivos XML emitidos con complemento de pagos | C9: RPAGOSE
B10: Importa archivos XML recibidos de tipo ingreso y egreso | C10: CFDIR
B11: Importar archivos XML recibidos con complemento de pagos | C11: RPAGOSR
B12: Importar archivos XML de nómina | C12: NOMINA
B13: Papel de trabajo para aclaración | C13: PAPELT
B14: Ejemplos de aclaración de cartas invitación | C14: ACLARACION
B15: Fluctuación cambiaria | C15: FLUCTUACION
B16: Tabla de INPC | C16: INPC

Sheet CFDIE (hidden)
F6: Emisor | I6: Receptor | R6: Trasladados | T6: Retenciones | X6: Aerolíneas
B7: Fecha | C7: Tipo de comprobante | D7: Serie y folio | E7: Folio fiscal | F7: RFC | G7: NOMBRE | H7: Régimen fiscal | I7: RFC | J7: Nombre | K7: Régimen fiscal | L7: USO | M7: Descripción | N7: Objeto de impuesto | O7: Importe | P7: Descuento | Q7: Importe - descuento | R7: IEPS | S7: IVA | T7: ISR | U7: IVA | V7: IEPS | W7: Impuesto sobre hospedaje | X7: TUA | Y7: Otros cargos | Z7: Total del comprobante | AA7: Método de pago | AB7: Forma de pago | AC7: Moneda | AD7: Tipo de cambio | AE7: Importe sin convertir | AF7: Fecha de cancelación | AG7: Ruta

Sheet RPAGOSE (hidden)
B2: Hoja para importar los XML emitidos con el complemento de recepción de pagos
V5: Complemento de recepción de pagos
J6: Emisor | M6: Receptor | P6: Campos generales CFDI | AG6: Solo que el pago se reciba en SPEI | AK6: Documentos que se cobran | AU6: Timbre fiscal del complemento de recepción de pagos | AX6: Impuestos trasladados | BF6: Impuestos retenidos
B7: Fecha de emisión | C7: Folio | D7: Serie | E7: Subtotal | F7: Moneda | G7: Total | H7: Tipo de comprobante | I7: Lugar Expedicion | J7: Rfc | K7: Nombre | L7: Régimen fiscal | M7: RFC receptor | N7: Nombre | O7: Régimen fiscal | P7: ClaveProdServ | Q7: Cantidad | R7: Unidad | S7: Descripcion | T7: ValorUnitario | U7: Importe | V7: Fecha de pago | W7: Forma de pago | X7: MonedaP | Y7: TipoCambioP | Z7: Monto | AA7: NumOperacion | AB7: RfcEmisorCtaOrd | AC7: NomBancoOrdExt | AD7: CtaOrdenante | AE7: RfcEmisorCtaBen | AF7: CtaBeneficiario | AG7: TipoCadPago | AH7: CertPago | AI7: CadPago | AJ7: SelloPago | AK7: IdDocumento | AL7: Serie | AM7: Folio | AN7: MonedaDR | AO7: TipoCambioDR | AP7: MetodoDePagoDR | AQ7: NumParcialidad | AR7: ImpSaldoAnt | AS7: ImpPagado | AT7: ImpSaldoInsoluto | AU7: Fecha de timbrado | AV7: UUID | AW7: Objeto de impuestos DR | AX7: Base para IEPS | AY7: Tipo factor | AZ7: Tasa o cuota | BA7: Total IEPS trasladado del comprobante | BB7: Base para IVA | BC7: Tipo factor | BD7: Tasa o cuota | BE7: Total IVA trasladado del comprobante | BF7: Base retención ISR | BG7: Tipo factor | BH7: Tasa o cuota | BI7: Retención de ISR | BJ7: Base retención IVA | BK7: Tipo factor | BL7: Tasa o cuota | BM7: Retención IVA | BN7: USO del CFDI | BO7: Base de ISR | BP7: IVA de los CFDI (VERIFICAR DATO) | BQ7: Ruta del archivo | BR7: Fecha de cancelación
BS8: =IFERROR(VLOOKUP(W8,FORMAP,2,FALSE)&" (" &VLOOKUP(W8,FORMAP,3,FALSE)&")","") -> 
BS471: =IFERROR(VLOOKUP(W471,FORMAP,2,FALSE)&" (" &VLOOKUP(W471,FORMAP,3,FALSE)&")","") -> 

Sheet CFDIR (hidden)
F6: Emisor | I6: Receptor | R6: Trasladados | T6: Retenciones | X6: Aerolíneas
B7: Fecha | C7: Tipo de comprobante | D7: Serie y folio | E7: Folio fiscal | F7: RFC | G7: NOMBRE | H7: Régimen fiscal | I7: RFC | J7: Nombre | K7: Régimen fiscal | L7: USO | M7: Descripción | N7: Objeto de impuesto | O7: Importe | P7: Descuento | Q7: Importe - descuento | R7: IEPS | S7: IVA | T7: ISR | U7: IVA | V7: IEPS | W7: Impuesto sobre hospedaje | X7: TUA | Y7: Otros cargos | Z7: Total del comprobante | AA7: Método de pago | AB7: Forma de pago | AC7: Moneda | AD7: Tipo de cambio | AE7: Importe sin convertir | AF7: Fecha de cancelación | AG7: Ruta

Sheet RPAGOSR (hidden)
B2: Hoja para importar los XML emitidos con el complemento de recepción de pagos
V5: Complemento de recepción de pagos
J6: Emisor | M6: Receptor | P6: Campos generales CFDI | AG6: Solo que el pago se reciba en SPEI | AK6: Documentos que se cobran | AU6: Timbre fiscal del complemento de recepción de pagos | AX6: Impuestos trasladados | BF6: Impuestos retenidos
B7: Fecha de emisión | C7: Folio | D7: Serie | E7: Subtotal | F7: Moneda | G7: Total | H7: Tipo de comprobante | I7: Lugar Expedicion | J7: Rfc | K7: Nombre | L7: Régimen fiscal | M7: RFC receptor | N7: Nombre | O7: Régimen fiscal | P7: ClaveProdServ | Q7: Cantidad | R7: Unidad | S7: Descripcion | T7: ValorUnitario | U7: Importe | V7: Fecha de pago | W7: Forma de pago | X7: MonedaP | Y7: TipoCambioP | Z7: Monto | AA7: NumOperacion | AB7: RfcEmisorCtaOrd | AC7: NomBancoOrdExt | AD7: CtaOrdenante | AE7: RfcEmisorCtaBen | AF7: CtaBeneficiario | AG7: TipoCadPago | AH7: CertPago | AI7: CadPago | AJ7: SelloPago | AK7: IdDocumento | AL7: Serie | AM7: Folio | AN7: MonedaDR | AO7: TipoCambioDR | AP7: MetodoDePagoDR | AQ7: NumParcialidad | AR7: ImpSaldoAnt | AS7: ImpPagado | AT7: ImpSaldoInsoluto | AU7: Fecha de timbrado | AV7: UUID | AW7: Objeto de impuestos DR | AX7: Base para IEPS | AY7: Tipo factor | AZ7: Tasa o cuota | BA7: Total IEPS trasladado del comprobante | BB7: Base para IVA | BC7: Tipo factor | BD7: Tasa o cuota | BE7: Total IVA trasladado del comprobante | BF7: Base retención ISR | BG7: Tipo factor | BH7: Tasa o cuota | BI7: Retención de ISR | BJ7: Base retención IVA | BK7: Tipo factor | BL7: Tasa o cuota | BM7: Retención IVA | BN7: USO del CFDI | BO7: Base de ISR | BP7: IVA de los CFDI (VERIFICAR DATO) | BQ7: Ruta del archivo | BR7: Fecha de cancelación

Sheet NOMINA (hidden)
AZ4: Vanta acciones | BB4: Tiempo extra | BF4: Jubilaciones, pensiones, retiro | BK4: Pagos por separación | BP4: Incapacidades
B5: Fecha de emisión | C5: Fecha de timbrado | D5: UUID | E5: Concepto | F5: Serie | G5: Folio | H5: Forma de pago | I5: Metodo de pago | J5: Moneda | K5: Registro patronal | L5: Nombre del patron | M5: Riesgo de puesto | N5: Concepto riesgo de puesto (este dato no pertenece al XML) | O5: No. De empleado | P5: Nombre del empleado | Q5: Departamento | R5: Puesto | S5: Clave de la entidad federrativa | T5: Estado (este dato no pertenece al XML) | U5: CURP | V5: RFC | W5: No. SS | X5: Fecha inicio relación laboral | Y5: Salario diario integrado | Z5: Salario base de cotización | AA5: Tipo de regimen | AB5: Tipo de régimen (este dato no pertenece al XML) | AC5: Tipo de jornada | AD5: Tipo de jornada (este dato no pertenece al XML) | AE5: Tipo de contrato | AF5: Tipo de contrato (este dato no pertenece al XML) | AG5: Antigüedad | AH5: Fecha inicial pago | AI5: Fecha final pago | AJ5: Fecha de pago | AK5: Periodicidad de pago | AL5: Periodicidad de pago (este dato no pertenece al XML) | AM5: Clave de percepción | AN5: Percepción | AO5: Percepción de acuerdo al catálogo del SAT (este dato no pertenece al XML) | AP5: Percepción exenta | AQ5: Percepción gravado | AR5: Clave de deducción | AS5: Deducción | AT5: Deducción de acuerdo al catálogo del SAT (este dato no pertenece al XML) | AU5: Importe deducción | AV5: Total del comprobante | AW5: Tipo de relación | AX5: UUID tipo de relación | AY5: Subsidio al empleo causado | AZ5: Valor de mercado | BA5: Precio al otorgarse | BB5: Días | BC5: Tipo de horas | BD5: Horas extras | BE5: Importe pagado | BF5: Total en una sola exhibición | BG5: Total parcialidad | BH5: Monto diario | BI5: Ingreso acumulable | BJ5: Ingreso no acumulable | BK5: Total pagado | BL5: No. de años de servicio | BM5: Último sueldo mensual ordinario | BN5: Ingreso acumulable | BO5: Ingreso no acumulable | BP5: Días de incapacidad | BQ5: Tipo de incapacidad | BR5: Importe monetario | BS5: Dìas pagados | BT5: Ruta

Sheet PAPELT (hidden)
B5: Ingresos que se acumulan al cobro
E6: Ingresos cobrados en el mes
B7: Ejercicio | C7: Periodo | D7: Ingresos CFDI | E7: CFDI emitidos con método de pago PUE | F7: CFDI emitidos con complemento de pagos | G7: Ingresos cobrados meses anteriores | H7: Ingresos cobrados del periodo con base en los CFDI | I7: Intereses y Otros ingresos | J7: Ingresos acumulables
B30: Ingresos por devengado
B32: Ejercicio | C32: Periodo | D32: Ingresos CFDI | E32: Ingresos de meses anteriores | F32: Total de ingresos del periodo | G32: Intereses y Otros ingresos | H32: Ingresos acumulables
B56: Diferencias IVA
B57: Ejercicio | C57: Periodo | D57: IVA trasladado en los CFDI | E57: IVA en CFDI con método de pago PUE | F57: IVA en complemento de pago | G57: Total de IVA cobrado del mes | H57: IVA declarado | I57: Diferencia
B81: Diferencias retención ISR
D82: Emisor persona física arrendamiento de inmuebles (régimen 606) | F82: Emisor persona física servicios profesionales (régimen 612) | H82: Emisor persona física RESICO (régimen 626)
B83: Ejercicio | C83: Periodo | D83: CFDI recibidos con método de pago PUE | E83: CFDI recibidos con complemento de pago | F83: CFDI recibidos con método de pago PUE | G83: CFDI recibidos con complemento de pago | H83: CFDI recibidos con método de pago PUE | I83: CFDI recibidos con complemento de pago | J83: Total retenciones | K83: Retenciones ISR declarados | L83: Diferencia
B107: Diferencias retención IVA
D108: Emisor persona física arrendamiento de inmuebles (régimen 606) | F108: Emisor persona física servicios profesionales (régimen 612) | H108: Emisor persona física RESICO (régimen 626)
B109: Ejercicio | C109: Periodo | D109: CFDI recibidos con método de pago PUE | E109: CFDI recibidos con complemento de pago | F109: CFDI recibidos con método de pago PUE | G109: CFDI recibidos con complemento de pago | H109: CFDI recibidos con método de pago PUE | I109: CFDI recibidos con complemento de pago | J109: Total retenciones | K109: Retenciones ISR declarados | L109: Diferencia
B132: Diferencias salarios
D133: Régimen 02 | E133: Régimen 03, 04 y 12 | F133: Régimen 13
B134: Ejercicio | C134: Periodo | D134: Retención ISR | E134: Retención ISR | F134: Retención ISR | G134: Total retenciones | H134: Retenciones ISR declarados | I134: Diferencia
D155: Régimen 05, 06, 07, 08, 09, 10, 11
B156: Ejercicio | C156: Periodo | D156: Retención ISR | E156: Retenciones ISR declarados | F156: Diferencia

Sheet ACLARACION (hidden)
B7: Ejemplos de aclaración
B9: Trámite | C9: MENSAJES VIGILANCIA PROFUNDA
B10: Asunto | C10: Aclaración al oficio-invitación o comunicados en el marco de la vigilancia profunda
B11: Descripción | C11: Señala los datos del oficio-invitación o comunicado, (número de oficio o comunicado, declaraciones omisas, periodo, tipo de inconsistencia) así como los motivos, razonamientos, hechos y causas por los que no estás de acuerdo con la información contenida en el oficio-invitación o con el comunicado o en el que informes que corregiste tu situación fiscal. De conformidad con su comunicado con folio X les informo que las diferencias que nos informan respecto a los meses de ____ del ejercicio de _____ se deben a que por un error humano, no se cancelaron los siguientes CFDI de tipo ingreso: XXX, pero la determinación de los impuestos se realizaron de acuerdo a las disposiciones fiscales vigentes, y derivado de que el artículo 29-A cuarto párrafo del Código Fiscal vigente, no permite cancelar CFDI anteriores al ejercicio de 2024.

Sheet GENERAL (hidden)
B6: Trámite | C6: MENSAJES VIGILANCIA PROFUNDA
B7: Asunto | C7: Aclaración al oficio-invitación o comunicados en el marco de la vigilancia profunda
B8: Descripción | C8: Señala los datos del oficio-invitación o comunicado, (número de oficio o comunicado, declaraciones omisas, periodo, tipo de inconsistencia) así como los motivos, razonamientos, hechos y causas por los que no estás de acuerdo con la información contenida en el oficio-invitación o con el comunicado o en el que informes que corregiste tu situación fiscal. De conformidad con su comunicado con folio X les informo que las diferencias que nos informan respecto a los meses de ____ del ejercicio de _____ se deben a que por un error humano, no se cancelaron los siguientes CFDI de tipo ingreso: XXX, pero la determinación de los impuestos se realizaron de acuerdo a las disposiciones fiscales vigentes, y derivado de que el artículo 29-A cuarto párrafo del Código Fiscal vigente, no permite cancelar CFDI anteriores al ejercicio de 2024.
B10: Trámite | C10: MENSAJES VIGILANCIA PROFUNDA
B11: Asunto | C11: Aclaración al oficio-invitación o comunicados en el marco de la vigilancia profunda
B12: Descripción | C12: Señala los datos del oficio-invitación o comunicado, (número de oficio o comunicado, declaraciones omisas, periodo, tipo de inconsistencia) así como los motivos, razonamientos, hechos y causas por los que no estás de acuerdo con la información contenida en el oficio-invitación o con el comunicado o en el que informes que corregiste tu situación fiscal. La diferencia de los ingresos anuales amparados en los CFDI emitidos de tipo ingreso del ejercicio de 20xx y lo declarado en la declaración anual, se debe a que soy contribuyente del Impuesto Especial Sobre Producción y Servicios, y de conformidad con el artículo 19 fracción II de la Ley del impuesto en comento, no se puede desglosar el impuesto a todos los clientes, y este no es un ingreso acumulable.
B14: Trámite | C14: MENSAJES VIGILANCIA PROFUNDA
B15: Asunto | C15: Aclaración al oficio-invitación o comunicados en el marco de la vigilancia profunda
B16: Descripción | C16: Señala los datos del oficio-invitación o comunicado, (número de oficio o comunicado, declaraciones omisas, periodo, tipo de inconsistencia) así como los motivos, razonamientos, hechos y causas por los que no estás de acuerdo con la información contenida en el oficio-invitación o con el comunicado o en el que informes que corregiste tu situación fiscal. Respecto a la diferencia de ingresos de los meses de ___ del ejercicio de ____, estos se deben a que por un error humano se capturo en el campo de método de pago PUE en lugar de PPD, y en forma de pago 99, pero la determinación de los impuestos se realizaron de conformidad con las disposiciones fiscales vigentes y derivado de que el artículo 29-A cuarto párrafo del Código Fiscal vigente, no permite cancelar CFDI anteriores al ejercicio de 2024.
B18: Trámite | C18: MENSAJES VIGILANCIA PROFUNDA
B19: Asunto | C19: Aclaración al oficio-invitación o comunicados en el marco de la vigilancia profunda
B20: Descripción | C20: Señala los datos del oficio-invitación o comunicado, (número de oficio o comunicado, declaraciones omisas, periodo, tipo de inconsistencia) así como los motivos, razonamientos, hechos y causas por los que no estás de acuerdo con la información contenida en el oficio-invitación o con el comunicado o en el que informes que corregiste tu situación fiscal. De acuerdo a su comunicado con folio X, les indico que las diferencias en retenciones que nos indican respecto al mes de X del ejercicio 20xx, se deben a que el emisor del CFDI con folio X, lo emitió de manera extemporánea un mes después del pago, pero las retenciones y entero de las mismas se realizaron de conformidad con las disposiciones fiscales vigentes en dicho ejercicio,
C22: Nota: En este caso se recomienda emitir la constancia de retenciones.
B25: Trámite | C25: MENSAJES VIGILANCIA PROFUNDA
B26: Asunto | C26: Aclaración al oficio-invitación o comunicados en el marco de la vigilancia profunda
B27: Descripción | C27: Señala los datos del oficio-invitación o comunicado, (número de oficio o comunicado, declaraciones omisas, periodo, tipo de inconsistencia) así como los motivos, razonamientos, hechos y causas por los que no estás de acuerdo con la información contenida en el oficio-invitación o con el comunicado o en el que informes que corregiste tu situación fiscal. Respecto a la diferencia en retención de ISR de salarios, les informamos que por un error humano no se cancelo el CFDI con folio X, y derivado de que el artículo 29-A cuarto párrafo del Código Fiscal de la Federación Vigente no permite la cancelación de los CFDI, no se puede cancelar el folio antes mencionado, pero la retención se realizo de acuerdo a las disposiciones fiscales vigentes.

Sheet FLUCTUACION (hidden)
B3: Persona moral régimen general de Ley
B4: Artículo 18 LISR. Para los efectos de este Título, se consideran ingresos acumulables, además de los señalados en otros artículos de esta Ley, los siguientes: IX. Los intereses devengados a favor en el ejercicio, sin ajuste alguno. En el caso de intereses moratorios, a partir del cuarto mes se acumularán únicamente los efectivamente cobrados. Para estos efectos, se considera que los ingresos por intereses moratorios que se perciban con posterioridad al tercer mes siguiente a aquél en el que el deudor incurrió en mora cubren, en primer término, los intereses moratorios devengados en los tres meses siguientes a aquél en el que el deudor incurrió en mora, hasta que el monto percibido exceda al monto de los intereses moratorios devengados acumulados correspondientes al último periodo citado. Para los efectos del párrafo anterior, los intereses moratorios que se cobren se acumularán hasta el momento en el que los efectivamente cobrados excedan al monto de los moratorios acumulados en los primeros tres meses y hasta por el monto en que excedan.
B6: Venta
B7: Fecha | C7: 2025-04-04
B8: Moneda | C8: USD
B9: T.C. | C9: 19.2563 | D9: Pactado con el cliente
B10: Método de pago | C10: PPD
B11: Forma de pago | C11: 99
B12: Importe | C12: 5000
B13: IVA | C13: =C12*0.16 -> 800
B14: Total | C14: =SUM(C11:C13) -> 5899
B17: Ingreso nominal facturado a acumular en abril | E17: =C12*C9 -> 96281.5
B18: (+) Intereses devengados | E18: =D28 -> 1580 | F18: Intereses (Artículo 8 LISR)
B19: (=) Total de ingresos nominales del mes | E19: =E17+E18 -> 97861.5
B20: Artículo 8 sexto párrafo LISR Se dará el tratamiento que esta Ley establece para los intereses, a las ganancias o pérdidas cambiarias, devengadas por la fluctuación de la moneda extranjera, incluyendo las correspondientes al principal y al interés mismo. La ganancia y la pérdida cambiaria no podrá ser menor ni exceder, respectivamente, de la que resultaría de considerar el tipo de cambio para solventar obligaciones denominadas en moneda extranjera pagaderas en la República Mexicana establecido por el Banco de México, que al efecto se publique en el Diario Oficial de la Federación, correspondiente al día en que se perciba la ganancia o se sufra la pérdida correspondiente.
B22: Tipo de cambio | C22: 2025-04-29 | D22: 19.5723
B24: =B12 -> Importe | D24: =C12 -> 5000
B25: (x) Fluctuación cambiaria devengada | D25: =IFERROR(C26-C27,0) -> 0.316
B26: Tipo de cambio de la revaluación | C26: =D22 -> 19.5723
B27: (-) Tipo de cambio de la venta | C27: =C9 -> 19.2563
B28: (=) Fluctuación cambiaria devengada | D28: =IFERROR(ROUND(D24*D25,2),0) -> 1580
B31: Mayo | D31: BANXICO
B32: Fecha de cobro | C32: 2025-05-28 | D32: 19.2338
B33: Tipo de cambio de cobro | C33: 19.6587
B35: =B24 -> Importe | D35: =D24 -> 5000
B36: (x) Fluctuación cambiaria devengada | D36: =IFERROR(C37-C38,0) -> 0.0864
B37: Tipo de cambio de la revaluación | C37: =C33 -> 19.6587
B38: (-) Tipo de cambio de la venta | C38: =C26 -> 19.5723
B39: (=) Fluctuación cambiaria devengada | D39: =IFERROR(ROUND(D35*D36,2),0) -> 432 | E39: Intereses (Artículo 8 LISR)
B41: Total de la operación de ganancia cambiaria devengada | D41: =D28+D39 -> 2012
B42: vs
B43: Ganancia cambiaria mínimo artículo 8 LISR | D43: =D49 -> 112.5
B45: Importe | D45: 5000
B46: (x) Fluctuación cambiaria percibida | D46: =C47-C48 -> 0.0225
B47: Tipo de cambio de la venta | C47: 19.2563
B48: (-) Tipo de cambio publicado en el D.O.F. del día en que se percibio | C48: =D32 -> 19.2338
B49: (=) Fluctuación cambiaria mínima | D49: =IFERROR(ROUND(D45*D46,2),0) -> 112.5
B53: Artículo 12 RLISR. Para efectos de los artículos 16 y 90 de la Ley, las personas morales y físicas residentes en México que se dediquen a la compra y venta de divisas, distintas a las casas de cambio, deberán acumular los ingresos determinados de conformidad con los artículos 8, 18, fracción IX, 44, 45, 46, 133 y 134 de la Ley, tomando en consideración sólo la ganancia efectivamente percibida y deberán estar soportados en la contabilidad del contribuyente. Lo anterior, con independencia de los demás ingresos que perciban.
B55: Compra de dolares
B56: Importe | C56: 5000
B57: (x) Tipo de cambio | C57: 18.9625
B58: (=) Importe en moneda nacional | C58: =ROUND(C56*C57,2) -> 94812.5
B60: Venta de dolares
B61: Importe | C61: 5000
B62: (x) Tipo de cambio | C62: 19.6231
B63: (=) Importe en moneda nacional | C63: =ROUND(C61*C62,2) -> 98115.5
B65: Ingresos nominales | D65: =C58 -> 94812.5
B66: (-) Ingresos a disminuir
B67: Ingresos facturados en los que se determinó ganancia por fluctuación cambiaria | D67: =C58 -> 94812.5
B68: (+) Ingresos por adicionar
B69: Ganancia efectivamente percibida por fluctuación cambiaria | D69: =C63-C58 -> 3303
B70: (=) Ingresos nominales | D70: =D65-D67+D69 -> 3303

Sheet INPC (hidden)
C5: Enero | D5: Febrero | E5: Marzo | F5: Abril | G5: Mayo | H5: Junio | I5: Julio | J5: Agosto | K5: Septiembre | L5: Octubre | M5: Noviembre | N5: Diciembre
B6: 2025
B7: 2024 | C7: 133.555 | D7: 133.681 | E7: 134.065 | F7: 134.336 | G7: 134.087 | H7: 134.594 | I7: 136.003 | J7: 136.013 | K7: 136.08 | L7: 136.828 | M7: 137.424
B8: 2023 | C8: 127.336 | D8: 128.046 | E8: 128.389 | F8: 128.363 | G8: 128.084 | H8: 128.214 | I8: 128.832 | J8: 129.545 | K8: 130.12 | L8: 130.609 | M8: 131.445 | N8: 132.373
B9: 2022 | C9: 118.002 | D9: 118.981 | E9: 120.159 | F9: 120.809 | G9: 121.022 | H9: 122.044 | I9: 122.948 | J9: 123.803 | K9: 124.571 | L9: 125.276 | M9: 125.997 | N9: 126.478
B10: 2021 | C10: 110.21 | D10: 110.907 | E10: 111.824 | F10: 112.19 | G10: 112.419 | H10: 113.018 | I10: 113.682 | J10: 113.899 | K10: 114.601 | L10: 115.561 | M10: 116.884 | N10: 117.308
B11: 2020 | C11: 106.447 | D11: 106.889 | E11: 106.838 | F11: 105.755 | G11: 106.162 | H11: 106.743 | I11: 107.444 | J11: 107.867 | K11: 108.114 | L11: 108.774 | M11: 108.856 | N11: 109.271
B12: 2019 | C12: 103.108 | D12: 103.079 | E12: 103.476 | F12: 103.531 | G12: 103.233 | H12: 103.299 | I12: 103.687 | J12: 103.67 | K12: 103.942 | L12: 104.503 | M12: 105.346 | N12: 105.934
B13: 2018 | C13: 98.7949997 | D13: 99.17137448 | E13: 99.49215698 | F13: 99.15484705 | G13: 98.99408017 | H13: 99.37646493 | I13: 99.9090991 | J13: 100.492 | K13: 100.917 | L13: 101.44 | M13: 102.303 | N13: 103.02
B14: 2017 | C14: 93.60388244 | D14: 94.14478034 | E14: 94.72248933 | F14: 94.83893263 | G14: 94.72549432 | H14: 94.96363964 | I14: 95.32273574 | J14: 95.79376765 | K14: 96.09351524 | L14: 96.69826913 | M14: 97.69517399 | N14: 98.27288299
B15: 2016 | C15: 89.38638139 | D15: 89.77778112 | E15: 89.9100006 | F15: 89.62527796 | G15: 89.22561452 | H15: 89.32402789 | I15: 89.55691448 | J15: 89.80933349 | K15: 90.35774385 | L15: 90.90615422 | M15: 91.61683394 | N15: 92.0390348
B16: 2015 | C16: 87.11010277 | D16: 87.27537713 | E16: 87.63071699 | F16: 87.40384038 | G16: 86.96736583 | H16: 87.11310776 | I16: 87.24081976 | J16: 87.42487529 | K16: 87.75241902 | L16: 88.2039185 | M16: 88.68546788 | N16: 89.04681772
B17: 2014 | C17: 84.51905163 | D17: 84.73315704 | E17: 84.96529239 | F17: 84.80677925 | G17: 84.53557906 | H17: 84.68207224 | I17: 84.91495883 | J17: 85.21996514 | K17: 85.59633992 | L17: 86.06962558 | M17: 86.76377787 | N17: 87.18898371
B18: 2013 | C18: 80.89278202 | D18: 81.29094297 | E18: 81.88743314 | F18: 81.94152293 | G18: 81.66882024 | H18: 81.61923793 | I18: 81.59219304 | J18: 81.82432839 | K18: 82.13233968 | L18: 82.52298816 | M18: 83.29226516 | N18: 83.7700583
B19: 2012 | C19: 78.34304946 | D19: 78.50231384 | E19: 78.54738867 | F19: 78.30097963 | G19: 78.05381934 | H19: 78.41366669 | I19: 78.85389747 | J19: 79.0905403 | K19: 79.43911894 | L19: 79.84103612 | M19: 80.3834365 | N19: 80.56824328
B20: 2011 | C20: 75.29599135 | D20: 75.57846024 | E20: 75.72345093 | F20: 75.71744095 | G20: 75.15926438 | H20: 75.15550814 | I20: 75.51610674 | J20: 75.63555502 | K20: 75.82111305 | L20: 76.3327123 | M20: 77.15833283 | N20: 77.79238536
B21: 2010 | C21: 72.55204598 | D21: 72.97167051 | E21: 73.48972549 | F21: 73.25556464 | G21: 72.79397765 | H21: 72.77118323 | I21: 72.92919 | J21: 73.1317495 | K21: 73.51511019 | L21: 73.96892635 | M21: 74.56158125 | N21: 74.93095445
B22: 2009 | C22: 69.45614941 | D22: 69.60949368 | E22: 70.00995018 | F22: 70.25499019 | G22: 70.05035847 | H22: 70.17935416 | I22: 70.37051645 | J22: 70.53888432 | K22: 70.89271587 | L22: 71.10719063 | M22: 71.47604578 | N22: 71.77185517
B23: 2008 | C23: 65.35056368 | D23: 65.5448343 | E23: 66.01989072 | F23: 66.17012666 | G23: 66.09863507 | H23: 66.3721681 | I23: 66.74205936 | J23: 67.12749227 | K23: 67.58493481 | L23: 68.04548569 | M23: 68.81894178 | N23: 69.29555236
B24: 2007 | C24: 63.01620793 | D24: 63.19234663 | E24: 63.32911314 | F24: 63.29129513 | G24: 62.98253436 | H24: 63.05817039 | I24: 63.32600481 | J24: 63.58399619 | K24: 64.07770259 | L24: 64.32740509 | M24: 64.78122126 | N24: 65.04905568
B25: 2006 | C25: 60.60362589 | D25: 60.69635773 | E25: 60.77251181 | F25: 60.86161727 | G25: 60.59067451 | H25: 60.64299806 | I25: 60.80929371 | J25: 61.11960865 | K25: 61.73661213 | L25: 62.00651878 | M25: 62.3318573 | N25: 62.69242357
B26: 2005 | C26: 58.30916037 | D26: 58.50343099 | E26: 58.76712098 | F26: 58.97641519 | G26: 58.82825146 | H26: 58.77178347 | I26: 59.00179988 | J26: 59.07225536 | K26: 59.30900649 | L26: 59.45457994 | M26: 59.88249335 | N26: 60.25031239
B27: 2004 | C27: 55.77431735 | D27: 56.10794476 | E27: 56.29807094 | F27: 56.38303195 | G27: 56.24160294 | H27: 56.33174451 | I27: 56.47939018 | J27: 56.82804118 | K27: 57.29791705 | L27: 57.69474717 | M27: 58.1868994 | N27: 58.30708815
B28: 2003 | C28: 53.52544068 | D28: 53.67412245 | E28: 54.01293041 | F28: 54.1051442 | G28: 53.93055967 | H28: 53.9751124 | I28: 54.0533387 | J28: 54.21548991 | K28: 54.53823816 | L28: 54.73820739 | M28: 55.19254161 | N28: 55.42981079
B29: 2002 | C29: 50.90047201 | D29: 50.86774985 | E29: 51.12794844 | F29: 51.40723497 | G29: 51.51142923 | H29: 51.76258618 | I29: 51.91118135 | J29: 52.1085603 | K29: 52.42198356 | L29: 52.65303609 | M29: 53.07887728 | N29: 53.3099298
B30: 2001 | C30: 48.57547625 | D30: 48.54332816 | E30: 48.85088778 | F30: 49.09730863 | G30: 49.20997046 | H30: 49.32636377 | I30: 49.19820196 | J30: 49.48968755 | K30: 49.95038115 | L30: 50.17613537 | M30: 50.36514891 | N30: 50.43489879
B31: 2000 | C31: 44.93083012 | D31: 45.32938031 | E31: 45.58068078 | F31: 45.84001827 | G31: 46.01137907 | H31: 46.28392024 | I31: 46.46446621 | J31: 46.71978519 | K31: 47.0610716 | L31: 47.38513583 | M31: 47.79028786 | N31: 48.30767118
B32: 1999 | C32: 40.46977028 | D32: 41.01364281 | E32: 41.39468378 | F32: 41.77457661 | G32: 42.02587708 | H32: 42.3020062 | I32: 42.58157977 | J32: 42.82125526 | K32: 43.23501839 | L32: 43.50885123 | M32: 43.89577645 | N32: 44.33551639
B33: 1998 | C33: 34.00392411 | D33: 34.59923784 | E33: 35.0045334 | F33: 35.33204206 | G33: 35.61348136 | H33: 36.03442041 | I33: 36.38187811 | J33: 36.7316321 | K33: 37.32737639 | L33: 37.86226893 | M33: 38.53278623 | N33: 39.47297432
B34: 1997 | C34: 29.49888603 | D34: 29.99459809 | E34: 30.36788907 | F34: 30.69597181 | G34: 30.97611945 | H34: 31.25095691 | I34: 31.52321104 | J34: 31.8035022 | K34: 32.19961259 | L34: 32.45694082 | M34: 32.82004201 | N34: 33.27987451
B35: 1996 | C35: 23.32975376 | D35: 23.87426203 | E35: 24.39982588 | F35: 25.09344962 | G35: 25.5508423 | H35: 25.96690173 | I35: 26.33603069 | J35: 26.68607171 | K35: 27.11275149 | L35: 27.45116754 | M35: 27.86708345 | N35: 28.75933645
B36: 1995 | C36: 15.37699094 | D36: 16.02870735 | E36: 16.9736172 | F36: 18.32613326 | G36: 19.09209019 | H36: 19.69802427 | I36: 20.09958836 | J36: 20.43298127 | K36: 20.85564253 | L36: 21.28476212 | M36: 21.80960838 | N36: 22.52016727
B37: 1994 | C37: 13.95037498 | D37: 14.02212406 | E37: 14.09422476 | F37: 14.1632513 | G37: 14.23168224 | H37: 14.30289457 | I37: 14.36632677 | J37: 14.43328665 | K37: 14.53593664 | L37: 14.6122453 | M37: 14.69036086 | N37: 14.81920437
B38: 1993 | C38: 12.97731976 | D38: 13.08334531 | E38: 13.15959369 | F38: 13.2354804 | G38: 13.31113749 | H38: 13.38579712 | I38: 13.45012344 | J38: 13.52211219 | K38: 13.62226067 | L38: 13.67797303 | M38: 13.73830236 | N38: 13.8430549
B39: 1992 | C39: 11.65777847 | D39: 11.79590044 | E39: 11.91594772 | F39: 12.02217132 | G39: 12.10143789 | H39: 12.18334519 | I39: 12.26027241 | J39: 12.33559223 | K39: 12.44289652 | L39: 12.53249354 | M39: 12.63662034 | N39: 12.81655348
B40: 1991 | C40: 9.883879895 | D40: 10.05642472 | E40: 10.19983964 | F40: 10.30668755 | G40: 10.40744167 | H40: 10.51664758 | I40: 10.60958427 | J40: 10.68342298 | K40: 10.78985037 | L40: 10.91534274 | M40: 11.1863741 | N40: 11.44967987
B41: 1990 | C41: 7.776037302 | D41: 7.952119854 | E41: 8.09230992 | F41: 8.215471549 | G41: 8.358837676 | H41: 8.542938589 | I41: 8.698734834 | J41: 8.846950442 | K41: 8.973061369 | L41: 9.102059888 | M41: 9.343723103 | N41: 9.638213954
B42: 1989 | C42: 6.349023793 | D42: 6.435183543 | E42: 6.504944899 | F42: 6.602224445 | G42: 6.693098769 | H42: 6.774384637 | I42: 6.842148218 | J42: 6.907332776 | K42: 6.973392795 | L42: 7.076525015 | M42: 7.175855437 | N42: 7.418029579
B43: 1988 | C43: 4.718245936 | D43: 5.11178304 | E43: 5.373547426 | F43: 5.538940737 | G43: 5.646108688 | H43: 5.761292137 | I43: 5.857456543 | J43: 5.911343343 | K43: 5.945139022 | L43: 5.990486483 | M43: 6.070654347 | N43: 6.197316386
B44: 1987 | C44: 1.704401293 | D44: 1.82738639 | E44: 1.948152699 | F44: 2.11860646 | G44: 2.278325059 | H44: 2.443145733 | I44: 2.641021527 | J44: 2.856871549 | K44: 3.045081395 | L44: 3.298844634 | M44: 3.560511423 | N44: 4.086392459
B45: 1986 | C45: 0.8340922314 | D45: 0.8711744774 | E45: 0.9116667168 | F45: 0.9592631115 | G45: 1.012570099 | H45: 1.077566644 | I45: 1.131332893 | J45: 1.221531243 | K45: 1.294811669 | L45: 1.368824029 | M45: 1.461304324 | N45: 1.576734626
B46: 1985 | C46: 0.5027114465 | D46: 0.5235962218 | E46: 0.5438853996 | F46: 0.5606210622 | G46: 0.5739022409 | H46: 0.5882755934 | I46: 0.6087628237 | J46: 0.6353768519 | K46: 0.6607523142 | L46: 0.6858522231 | M46: 0.717495125 | N46: 0.7663401306
B47: 1984 | C47: 0.3127277179 | D47: 0.3292323176 | E47: 0.3433042813 | F47: 0.35815555 | G47: 0.3700316859 | H47: 0.383423376 | I47: 0.3959927058 | J47: 0.4072488386 | K47: 0.4193804378 | L47: 0.434033654 | M47: 0.4489294132 | N47: 0.4679958155
B48: 1983 | C48: 0.1803550862 | D48: 0.1900339592 | E48: 0.1992320461 | F48: 0.2118458612 | G48: 0.221033903 | H48: 0.2294038894 | I48: 0.2407461334 | J48: 0.2500906071 | K48: 0.257787495 | L48: 0.2663411785 | M48: 0.2819832374 | N48: 0.2940473806
B49: 1982 | C49: 0.08586553576 | D49: 0.08923965376 | E49: 0.09249895005 | F49: 0.09751204377 | G49: 0.1029930085 | H49: 0.1079544314 | I49: 0.1135172022 | J49: 0.1262558789 | K49: 0.1329954996 | L49: 0.1398901172 | M49: 0.1469626971 | N49: 0.1626564164
B50: 1981 | C50: 0.06561511364 | D50: 0.06722682413 | E50: 0.06866487223 | F50: 0.070213437 | G50: 0.07127547043 | H50: 0.07227148812 | I50: 0.07354449426 | J50: 0.07506004857 | K50: 0.07645648132 | L50: 0.07815286789 | M50: 0.07965693692 | N50: 0.08180109914
B51: 1980 | C51: 0.05134222229 | D51: 0.05252911734 | E51: 0.05360981111 | F51: 0.05454698293 | G51: 0.05543679935 | H51: 0.05653614828 | I51: 0.05811484831 | J51: 0.0593189635 | K51: 0.05997771704 | L51: 0.06088618343 | M51: 0.061942482 | N51: 0.0635671076
B52: 1979 | C52: 0.04223742153 | D52: 0.04284450426 | E52: 0.04342575159 | F52: 0.04381468655 | G52: 0.044388764 | H52: 0.0448810302 | I52: 0.04542496203 | J52: 0.04611241581 | K52: 0.046677878 | L52: 0.04749306342 | M52: 0.04810445118 | N52: 0.04895551191
B53: 1978 | C53: 0.03589248098 | D53: 0.03640771256 | E53: 0.03678659726 | F53: 0.03719562757 | G53: 0.03756016213 | H53: 0.03807682873 | I53: 0.03872266197 | J53: 0.0391087269 | K53: 0.03955506753 | L53: 0.04003441863 | M53: 0.04044631378 | N53: 0.04078932317
B54: 1977 | C54: 0.03002689152 | D54: 0.03068994492 | E54: 0.03122526667 | F54: 0.0316974427 | G54: 0.03197586617 | H54: 0.03236767115 | I54: 0.03273364591 | J54: 0.03340530938 | K54: 0.03399804198 | L54: 0.03425781029 | M54: 0.03463238995 | N54: 0.03511174104
B55: 1976 | C55: 0.02331884624 | D55: 0.02375514178 | E55: 0.02398763968 | F55: 0.02415555684 | G55: 0.02432490901 | H55: 0.02442250021 | I55: 0.02462916788 | J55: 0.0248645358 | K55: 0.02571273168 | L55: 0.02716083005 | M55: 0.02838791062 | N55: 0.02909975961
B56: 1975 | C56: 0.0208158895 | D56: 0.02093070084 | E56: 0.02106273752 | F56: 0.02124069976 | G56: 0.02152486846 | H56: 0.02189083804 | I56: 0.02206593026 | J56: 0.0222568128 | K56: 0.02241898474 | L56: 0.02253380126 | M56: 0.02269167334 | N56: 0.02287681064
B57: 1974 | C57: 0.01765274421 | D57: 0.01805172426 | E57: 0.01819094117 | F57: 0.01843778919 | G57: 0.01858274615 | H57: 0.01876644845 | I57: 0.01903769686 | J57: 0.01923862448 | K57: 0.01945677226 | L57: 0.01984283201 | M57: 0.02039394408 | N57: 0.02055325116
B58: 1973 | C58: 0.01424562093 | D58: 0.01436330748 | E58: 0.01448960411 | F58: 0.01471923198 | G58: 0.01487566904 | H58: 0.01499765545 | I58: 0.01538228537 | J58: 0.01562913857 | K58: 0.0160008482 | L58: 0.01620608086 | M58: 0.01640557347 | N58: 0.01704279146
B59: 1972 | C59: 0.01336154975 | D59: 0.01340317028 | E59: 0.01347636627 | F59: 0.01356104236 | G59: 0.01358830759 | H59: 0.01368876881 | I59: 0.01374043962 | J59: 0.01383085575 | K59: 0.01389400148 | L59: 0.01390404656 | M59: 0.0139944627 | N59: 0.01404182846
B60: 1971 | C60: 0.01279895758 | D60: 0.01285205821 | E60: 0.01290085381 | F60: 0.01296687474 | G60: 0.01299414515 | H60: 0.01305298584 | I60: 0.01304294075 | J60: 0.01316205713 | K60: 0.01320511268 | L60: 0.01321803297 | M60: 0.01323955816 | N60: 0.01330270906
B61: 1970 | C61: 0.0121976149 | D61: 0.01219617989 | E61: 0.01223206037 | F61: 0.01224784551 | G61: 0.01227368091 | H61: 0.01234831191 | I61: 0.01240858761 | J61: 0.01246599328 | K61: 0.01249613372 | L61: 0.01250043876 | M61: 0.01256789469 | N61: 0.01267409597
B62: 1969 | C62: 0.01159484238 | D62: 0.01163645774 | E62: 0.01164794302 | F62: 0.01167951329 | G62: 0.01167951329 | H62: 0.01172113383 | I62: 0.01176562439 | J62: 0.01177854468 | K62: 0.01188905099 | L62: 0.0120139126 | M62: 0.01201534761 | N62: 0.01210576375
B193: Enero | C193: 1
B194: Febrero | C194: 2
B195: Marzo | C195: 3
B196: Abril | C196: 4
B197: Mayo | C197: 5
B198: Junio | C198: 6
B199: Julio | C199: 7
B200: Agosto | C200: 8
B201: Septiembre | C201: 9
B202: Octubre | C202: 10
B203: Noviembre | C203: 11
B204: Diciembre | C204: 12
B292: Enero
B293: Febrero
B294: Marzo
B295: Abril
B296: Mayo
B297: Junio
B298: Julio
B299: Agosto
B300: Septiembre
B301: Octubre
B302: Noviembre
B303: Diciembre

Sheet c_Estado (hidden)
A1: Catálogo de estados.
A5: c_Estado | B5: c_Pais | C5: Nombre del estado | D5: Fecha inicio de vigencia | E5: Fecha fin de vigencia
A6: AGU | B6: MEX | C6: Aguascalientes | D6: 2022-01-01
A7: BCN | B7: MEX | C7: Baja California | D7: 2022-01-01
A8: BCS | B8: MEX | C8: Baja California Sur | D8: 2022-01-01
A9: CAM | B9: MEX | C9: Campeche | D9: 2022-01-01
A10: CHP | B10: MEX | C10: Chiapas | D10: 2022-01-01
A11: CHH | B11: MEX | C11: Chihuahua | D11: 2022-01-01
A12: COA | B12: MEX | C12: Coahuila | D12: 2022-01-01
A13: COL | B13: MEX | C13: Colima | D13: 2022-01-01
A14: CMX | B14: MEX | C14: Ciudad de México | D14: 2022-01-01
A15: DUR | B15: MEX | C15: Durango | D15: 2022-01-01
A16: GUA | B16: MEX | C16: Guanajuato | D16: 2022-01-01
A17: GRO | B17: MEX | C17: Guerrero | D17: 2022-01-01
A18: HID | B18: MEX | C18: Hidalgo | D18: 2022-01-01
A19: JAL | B19: MEX | C19: Jalisco | D19: 2022-01-01
A20: MEX | B20: MEX | C20: Estado de México | D20: 2022-01-01
A21: MIC | B21: MEX | C21: Michoacán | D21: 2022-01-01
A22: MOR | B22: MEX | C22: Morelos | D22: 2022-01-01
A23: NAY | B23: MEX | C23: Nayarit | D23: 2022-01-01
A24: NLE | B24: MEX | C24: Nuevo León | D24: 2022-01-01
A25: OAX | B25: MEX | C25: Oaxaca | D25: 2022-01-01
A26: PUE | B26: MEX | C26: Puebla | D26: 2022-01-01
A27: QUE | B27: MEX | C27: Querétaro | D27: 2022-01-01
A28: ROO | B28: MEX | C28: Quintana Roo | D28: 2022-01-01
A29: SLP | B29: MEX | C29: San Luis Potosí | D29: 2022-01-01
A30: SIN | B30: MEX | C30: Sinaloa | D30: 2022-01-01
A31: SON | B31: MEX | C31: Sonora | D31: 2022-01-01
A32: TAB | B32: MEX | C32: Tabasco | D32: 2022-01-01
A33: TAM | B33: MEX | C33: Tamaulipas | D33: 2022-01-01
A34: TLA | B34: MEX | C34: Tlaxcala | D34: 2022-01-01
A35: VER | B35: MEX | C35: Veracruz | D35: 2022-01-01
A36: YUC | B36: MEX | C36: Yucatán | D36: 2022-01-01
A37: ZAC | B37: MEX | C37: Zacatecas | D37: 2022-01-01
A38: AL | B38: USA | C38: Alabama | D38: 2022-01-01
A39: AK | B39: USA | C39: Alaska | D39: 2022-01-01
A40: AZ | B40: USA | C40: Arizona | D40: 2022-01-01
A41: AR | B41: USA | C41: Arkansas | D41: 2022-01-01
A42: CA | B42: USA | C42: California | D42: 2022-01-01
A43: NC | B43: USA | C43: Carolina del Norte | D43: 2022-01-01
A44: SC | B44: USA | C44: Carolina del Sur | D44: 2022-01-01
A45: CO | B45: USA | C45: Colorado | D45: 2022-01-01
A46: CT | B46: USA | C46: Connecticut | D46: 2022-01-01
A47: ND | B47: USA | C47: Dakota del Norte | D47: 2022-01-01
A48: SD | B48: USA | C48: Dakota del Sur | D48: 2022-01-01
A49: DE | B49: USA | C49: Delaware | D49: 2022-01-01
A50: FL | B50: USA | C50: Florida | D50: 2022-01-01
A51: GA | B51: USA | C51: Georgia | D51: 2022-01-01
A52: HI | B52: USA | C52: Hawái | D52: 2022-01-01
A53: ID | B53: USA | C53: Idaho | D53: 2022-01-01
A54: IL | B54: USA | C54: Illinois | D54: 2022-01-01
A55: IN | B55: USA | C55: Indiana | D55: 2022-01-01
A56: IA | B56: USA | C56: Iowa | D56: 2022-01-01
A57: KS | B57: USA | C57: Kansas | D57: 2022-01-01
A58: KY | B58: USA | C58: Kentucky | D58: 2022-01-01
A59: LA | B59: USA | C59: Luisiana | D59: 2022-01-01
A60: ME | B60: USA | C60: Maine | D60: 2022-01-01
A61: MD | B61: USA | C61: Maryland | D61: 2022-01-01
A62: MA | B62: USA | C62: Massachusetts | D62: 2022-01-01
A63: MI | B63: USA | C63: Míchigan | D63: 2022-01-01
A64: MN | B64: USA | C64: Minnesota | D64: 2022-01-01
A65: MS | B65: USA | C65: Misisipi | D65: 2022-01-01
A66: MO | B66: USA | C66: Misuri | D66: 2022-01-01
A67: MT | B67: USA | C67: Montana | D67: 2022-01-01
A68: NE | B68: USA | C68: Nebraska | D68: 2022-01-01
A69: NV | B69: USA | C69: Nevada | D69: 2022-01-01
A70: NJ | B70: USA | C70: Nueva Jersey | D70: 2022-01-01
A71: NY | B71: USA | C71: Nueva York | D71: 2022-01-01
A72: NH | B72: USA | C72: Nuevo Hampshire | D72: 2022-01-01
A73: NM | B73: USA | C73: Nuevo México | D73: 2022-01-01
A74: OH | B74: USA | C74: Ohio | D74: 2022-01-01
A75: OK | B75: USA | C75: Oklahoma | D75: 2022-01-01
A76: OR | B76: USA | C76: Oregón | D76: 2022-01-01
A77: PA | B77: USA | C77: Pensilvania | D77: 2022-01-01
A78: RI | B78: USA | C78: Rhode Island | D78: 2022-01-01
A79: TN | B79: USA | C79: Tennessee | D79: 2022-01-01
A80: TX | B80: USA | C80: Texas | D80: 2022-01-01
A81: UT | B81: USA | C81: Utah | D81: 2022-01-01
A82: VT | B82: USA | C82: Vermont | D82: 2022-01-01
A83: VA | B83: USA | C83: Virginia | D83: 2022-01-01
A84: WV | B84: USA | C84: Virginia Occidental | D84: 2022-01-01
A85: WA | B85: USA | C85: Washington | D85: 2022-01-01
A86: WI | B86: USA | C86: Wisconsin | D86: 2022-01-01
A87: WY | B87: USA | C87: Wyoming | D87: 2022-01-01
A88: ON | B88: CAN | C88: Ontario | D88: 2022-01-01
A89: QC | B89: CAN | C89: Quebec | D89: 2022-01-01
A90: NS | B90: CAN | C90: Nueva Escocia | D90: 2022-01-01
A91: NB | B91: CAN | C91: Nuevo Brunswick | D91: 2022-01-01
A92: MB | B92: CAN | C92: Manitoba | D92: 2022-01-01
A93: BC | B93: CAN | C93: Columbia Británica | D93: 2022-01-01
A94: PE | B94: CAN | C94: Isla del Príncipe Eduardo | D94: 2022-01-01
A95: SK | B95: CAN | C95: Saskatchewan | D95: 2022-01-01
A96: AB | B96: CAN | C96: Alberta | D96: 2022-01-01
A97: NL | B97: CAN | C97: Terranova y Labrador | D97: 2022-01-01
A98: NT | B98: CAN | C98: Territorios del Noroeste | D98: 2022-01-01
A99: YT | B99: CAN | C99: Yukón | D99: 2022-01-01
A100: UN | B100: CAN | C100: Nunavut | D100: 2022-01-01

Sheet CATALOGO (hidden)
B4: c_RiesgoPuesto | C4: Descripción | D4: Fecha inicio de vigencia | E4: Fecha fin de vigencia | H4: c_TipoPercepcion | I4: Descripción | J4: Fecha inicio de vigencia | K4: Fecha fin de vigencia
B5: 1 | C5: Clase I | D5: 2017-01-01 | H5: 1 | I5: Sueldos, Salarios Rayas y Jornales | J5: 2016-11-01
B6: 2 | C6: Clase II | D6: 2017-01-01 | H6: 2 | I6: Gratificación Anual (Aguinaldo) | J6: 2016-11-01
B7: 3 | C7: Clase III | D7: 2017-01-01 | H7: 3 | I7: Participación de los Trabajadores en las Utilidades PTU | J7: 2016-11-01
B8: 4 | C8: Clase IV | D8: 2017-01-01 | H8: 4 | I8: Reembolso de Gastos Médicos Dentales y Hospitalarios | J8: 2016-11-01
B9: 5 | C9: Clase V | D9: 2017-01-01 | H9: 5 | I9: Fondo de Ahorro | J9: 2016-11-01
B10: 99 | C10: No aplica | D10: 2017-08-13 | H10: 6 | I10: Caja de ahorro | J10: 2016-11-01
H11: 9 | I11: Contribuciones a Cargo del Trabajador Pagadas por el Patrón | J11: 2016-11-01
H12: 10 | I12: Premios por puntualidad | J12: 2016-11-01
B13: c_TipoRegimen | C13: Descripción | D13: Fecha inicio de vigencia | E13: Fecha fin de vigencia | H13: 11 | I13: Prima de Seguro de vida | J13: 2016-11-01
B14: 2 | C14: Sueldos (Incluye ingresos señalados en la fracción I del artículo 94 de LISR) | D14: 2017-01-01 | H14: 12 | I14: Seguro de Gastos Médicos Mayores | J14: 2016-11-01
B15: 3 | C15: Jubilados | D15: 2017-01-01 | H15: 13 | I15: Cuotas Sindicales Pagadas por el Patrón | J15: 2016-11-01
B16: 4 | C16: Pensionados | D16: 2017-01-01 | H16: 14 | I16: Subsidios por incapacidad | J16: 2016-11-01
B17: 5 | C17: Asimilados Miembros Sociedades Cooperativas Produccion | D17: 2017-01-01 | H17: 15 | I17: Becas para trabajadores y/o hijos | J17: 2016-11-01
B18: 6 | C18: Asimilados Integrantes Sociedades Asociaciones Civiles | D18: 2017-01-01 | H18: 19 | I18: Horas extra | J18: 2016-11-01
B19: 7 | C19: Asimilados Miembros consejos | D19: 2017-01-01 | H19: 20 | I19: Prima dominical | J19: 2016-11-01
B20: 8 | C20: Asimilados comisionistas | D20: 2017-01-01 | H20: 21 | I20: Prima vacacional | J20: 2016-11-01
B21: 9 | C21: Asimilados Honorarios | D21: 2017-01-01 | H21: 22 | I21: Prima por antigüedad | J21: 2016-11-01
B22: 10 | C22: Asimilados acciones | D22: 2017-01-01 | H22: 23 | I22: Pagos por separación | J22: 2016-11-01
B23: 11 | C23: Asimilados otros | D23: 2017-01-01 | H23: 24 | I23: Seguro de retiro | J23: 2016-11-01
B24: 12 | C24: Jubilados o Pensionados | D24: 2017-03-27 | H24: 25 | I24: Indemnizaciones | J24: 2016-11-01
B25: 13 | C25: Indemnización o Separación | D25: 2018-10-15 | H25: 26 | I25: Reembolso por funeral | J25: 2016-11-01
B26: 99 | C26: Otro Regimen | D26: 2017-01-01 | H26: 27 | I26: Cuotas de seguridad social pagadas por el patrón | J26: 2016-11-01
H27: 28 | I27: Comisiones | J27: 2016-11-01
H28: 29 | I28: Vales de despensa | J28: 2016-11-01
B29: c_TipoContrato | C29: Descripción | H29: 30 | I29: Vales de restaurante | J29: 2016-11-01
B30: 1 | C30: Contrato de trabajo por tiempo indeterminado | H30: 31 | I30: Vales de gasolina | J30: 2016-11-01
B31: 2 | C31: Contrato de trabajo para obra determinada | H31: 32 | I31: Vales de ropa | J31: 2016-11-01
B32: 3 | C32: Contrato de trabajo por tiempo determinado | H32: 33 | I32: Ayuda para renta | J32: 2016-11-01
B33: 4 | C33: Contrato de trabajo por temporada | H33: 34 | I33: Ayuda para artículos escolares | J33: 2016-11-01
B34: 5 | C34: Contrato de trabajo sujeto a prueba | H34: 35 | I34: Ayuda para anteojos | J34: 2016-11-01
B35: 6 | C35: Contrato de trabajo con capacitación inicial | H35: 36 | I35: Ayuda para transporte | J35: 2016-11-01
B36: 7 | C36: Modalidad de contratación por pago de hora laborada | H36: 37 | I36: Ayuda para gastos de funeral | J36: 2016-11-01
B37: 8 | C37: Modalidad de trabajo por comisión laboral | H37: 38 | I37: Otros ingresos por salarios | J37: 2016-11-01
B38: 9 | C38: Modalidades de contratación donde no existe relación de trabajo | H38: 39 | I38: Jubilaciones, pensiones o haberes de retiro | J38: 2016-11-01
B39: 10 | C39: Jubilación, pensión, retiro. | H39: 44 | I39: Jubilaciones, pensiones o haberes de retiro en parcialidades | J39: 2016-11-01
B40: 99 | C40: Otro contrato | H40: 45 | I40: Ingresos en acciones o títulos valor que representan bienes | J40: 2016-11-01
H41: 046 | I41: Ingresos asimilados a salarios | J41: 2016-11-01
H42: 047 | I42: Alimentación | J42: 2016-11-01
B43: c_PeriodicidadPago | C43: Descripción | D43: Fecha inicio de vigencia | E43: Fecha fin de vigencia | H43: 48 | I43: Habitación | J43: 2016-11-01
B44: 1 | C44: Diario | D44: 2016-11-01 | H44: 49 | I44: Premios por asistencia | J44: 2016-11-01
B45: 2 | C45: Semanal | D45: 2016-11-01 | H45: 50 | I45: Viáticos | J45: 2017-01-06
B46: 3 | C46: Catorcenal | D46: 2016-11-01 | H46: 51 | I46: Pagos por gratificaciones, primas, compensaciones, recompensas u otros a extrabajadores derivados de jubilación en parcialidades | J46: 2018-10-15
B47: 4 | C47: Quincenal | D47: 2016-11-01 | H47: 52 | I47: Pagos que se realicen a extrabajadores que obtengan una jubilación en parcialidades derivados de la ejecución de resoluciones judicial o de un laudo | J47: 2018-10-15
B48: 5 | C48: Mensual | D48: 2016-11-01 | H48: 53 | I48: Pagos que se realicen a extrabajadores que obtengan una jubilación en una sola exhibición derivados de la ejecución de resoluciones judicial o de un laudo | J48: 2018-10-15
B49: 6 | C49: Bimestral | D49: 2016-11-01
B50: 7 | C50: Unidad obra | D50: 2016-11-01
B51: 8 | C51: Comisión | D51: 2016-11-01 | H51: c_TipoOtroPago | I51: Descripción | J51: Fecha inicio de vigencia | K51: Fecha fin de vigencia
B52: 9 | C52: Precio alzado | D52: 2016-11-01 | H52: 1 | I52: Reintegro de ISR pagado en exceso (siempre que no haya sido enterado al SAT). | J52: 2017-01-01
B53: 10 | C53: Decenal | D53: 2017-01-19 | H53: 2 | I53: Subsidio para el empleo (efectivamente entregado al trabajador). | J53: 2017-01-01
B54: 99 | C54: Otra Periodicidad | D54: 2016-11-01 | H54: 3 | I54: Viáticos (entregados al trabajador). | J54: 2017-01-01
H55: 4 | I55: Aplicación de saldo a favor por compensación anual. | J55: 2017-01-01
H56: 5 | I56: Reintegro de ISR retenido en exceso de ejercicio anterior (siempre que no haya sido enterado al SAT). | J56: 2017-12-05
B57: c_TipoIncapacidad | C57: Descripción | H57: 999 | I57: Pagos distintos a los listados y que no deben considerarse como ingreso por sueldos, salarios o ingresos asimilados. | J57: 2017-01-01
B58: 1 | C58: Riesgo de trabajo.
B59: 2 | C59: Enfermedad en general.
B60: 3 | C60: Maternidad. | H60: c_TipoDeduccion | I60: Descripción | J60: Fecha inicio de vigencia | K60: Fecha fin de vigencia
H61: 1 | I61: Seguridad social | J61: 2016-11-01
H62: 2 | I62: ISR | J62: 2016-11-01
B63: c_TipoJornada | C63: Descripción | H63: 3 | I63: Aportaciones a retiro, cesantía en edad avanzada y vejez. | J63: 2016-11-01
B64: 1 | C64: Diurna | H64: 4 | I64: Otros | J64: 2016-11-01
B65: 2 | C65: Nocturna | H65: 5 | I65: Aportaciones a Fondo de vivienda | J65: 2016-11-01
B66: 3 | C66: Mixta | H66: 6 | I66: Descuento por incapacidad | J66: 2016-11-01
B67: 4 | C67: Por hora | H67: 7 | I67: Pensión alimenticia | J67: 2016-11-01
B68: 5 | C68: Reducida | H68: 8 | I68: Renta | J68: 2016-11-01
B69: 6 | C69: Continuada | H69: 9 | I69: Préstamos provenientes del Fondo Nacional de la Vivienda para los Trabajadores | J69: 2016-11-01
B70: 7 | C70: Partida | H70: 10 | I70: Pago por crédito de vivienda | J70: 2016-11-01
B71: 8 | C71: Por turnos | H71: 11 | I71: Pago de abonos INFONACOT | J71: 2016-11-01
B72: 99 | C72: Otra Jornada | H72: 12 | I72: Anticipo de salarios | J72: 2016-11-01
H73: 13 | I73: Pagos hechos con exceso al trabajador | J73: 2016-11-01
H74: 14 | I74: Errores | J74: 2016-11-01
B75: c_Estado | C75: c_Pais | D75: Nombre del estado | H75: 15 | I75: Pérdidas | J75: 2016-11-01
B76: AGU | C76: MEX | D76: Aguascalientes | H76: 16 | I76: Averías | J76: 2016-11-01
B77: BCN | C77: MEX | D77: Baja California | H77: 17 | I77: Adquisición de artículos producidos por la empresa o establecimiento | J77: 2016-11-01
B78: BCS | C78: MEX | D78: Baja California Sur | H78: 18 | I78: Cuotas para la constitución y fomento de sociedades cooperativas y de cajas de ahorro | J78: 2016-11-01
B79: CAM | C79: MEX | D79: Campeche | H79: 19 | I79: Cuotas sindicales | J79: 2016-11-01
B80: CHP | C80: MEX | D80: Chiapas | H80: 20 | I80: Ausencia (Ausentismo) | J80: 2016-11-01
B81: CHH | C81: MEX | D81: Chihuahua | H81: 21 | I81: Cuotas obrero patronales | J81: 2016-11-01
B82: COA | C82: MEX | D82: Coahuila | H82: 22 | I82: Impuestos Locales | J82: 2016-11-01
B83: COL | C83: MEX | D83: Colima | H83: 23 | I83: Aportaciones voluntarias | J83: 2016-11-01
B84: DIF | C84: MEX | D84: Ciudad de México | H84: 24 | I84: Ajuste en Gratificación Anual (Aguinaldo) Exento | J84: 2017-01-06
B85: DUR | C85: MEX | D85: Durango | H85: 25 | I85: Ajuste en Gratificación Anual (Aguinaldo) Gravado | J85: 2017-01-06
B86: GUA | C86: MEX | D86: Guanajuato | H86: 26 | I86: Ajuste en Participación de los Trabajadores en las Utilidades PTU Exento | J86: 2017-01-06
B87: GRO | C87: MEX | D87: Guerrero | H87: 27 | I87: Ajuste en Participación de los Trabajadores en las Utilidades PTU Gravado | J87: 2017-01-06
B88: HID | C88: MEX | D88: Hidalgo | H88: 28 | I88: Ajuste en Reembolso de Gastos Médicos Dentales y Hospitalarios Exento | J88: 2017-01-06
B89: JAL | C89: MEX | D89: Jalisco | H89: 29 | I89: Ajuste en Fondo de ahorro Exento | J89: 2017-01-06
B90: MEX | C90: MEX | D90: Estado de México | H90: 30 | I90: Ajuste en Caja de ahorro Exento | J90: 2017-01-06
B91: MIC | C91: MEX | D91: Michoacán | H91: 31 | I91: Ajuste en Contribuciones a Cargo del Trabajador Pagadas por el Patrón Exento | J91: 2017-01-06
B92: MOR | C92: MEX | D92: Morelos | H92: 32 | I92: Ajuste en Premios por puntualidad Gravado | J92: 2017-01-06
B93: NAY | C93: MEX | D93: Nayarit | H93: 33 | I93: Ajuste en Prima de Seguro de vida Exento | J93: 2017-01-06
B94: NLE | C94: MEX | D94: Nuevo León | H94: 34 | I94: Ajuste en Seguro de Gastos Médicos Mayores Exento | J94: 2017-01-06
B95: OAX | C95: MEX | D95: Oaxaca | H95: 35 | I95: Ajuste en Cuotas Sindicales Pagadas por el Patrón Exento | J95: 2017-01-06
B96: PUE | C96: MEX | D96: Puebla | H96: 36 | I96: Ajuste en Subsidios por incapacidad Exento | J96: 2017-01-06
B97: QUE | C97: MEX | D97: Querétaro | H97: 37 | I97: Ajuste en Becas para trabajadores y/o hijos Exento | J97: 2017-01-06
B98: ROO | C98: MEX | D98: Quintana Roo | H98: 38 | I98: Ajuste en Horas extra Exento | J98: 2017-01-06
B99: SLP | C99: MEX | D99: San Luis Potosí | H99: 39 | I99: Ajuste en Horas extra Gravado | J99: 2017-01-06
B100: SIN | C100: MEX | D100: Sinaloa | H100: 40 | I100: Ajuste en Prima dominical Exento | J100: 2017-01-06
B101: SON | C101: MEX | D101: Sonora | H101: 41 | I101: Ajuste en Prima dominical Gravado | J101: 2017-01-06
B102: TAB | C102: MEX | D102: Tabasco | H102: 42 | I102: Ajuste en Prima vacacional Exento | J102: 2017-01-06
B103: TAM | C103: MEX | D103: Tamaulipas | H103: 43 | I103: Ajuste en Prima vacacional Gravado | J103: 2017-01-06
B104: TLA | C104: MEX | D104: Tlaxcala | H104: 44 | I104: Ajuste en Prima por antigüedad Exento | J104: 2017-01-06
B105: VER | C105: MEX | D105: Veracruz | H105: 45 | I105: Ajuste en Prima por antigüedad Gravado | J105: 2017-01-06
B106: YUC | C106: MEX | D106: Yucatán | H106: 46 | I106: Ajuste en Pagos por separación Exento | J106: 2017-01-06
B107: ZAC | C107: MEX | D107: Zacatecas | H107: 47 | I107: Ajuste en Pagos por separación Gravado | J107: 2017-01-06
B108: AL | C108: USA | D108: Alabama | H108: 48 | I108: Ajuste en Seguro de retiro Exento | J108: 2017-01-06
B109: AK | C109: USA | D109: Alaska | H109: 49 | I109: Ajuste en Indemnizaciones Exento | J109: 2017-01-06
B110: AZ | C110: USA | D110: Arizona | H110: 50 | I110: Ajuste en Indemnizaciones Gravado | J110: 2017-01-06
B111: AR | C111: USA | D111: Arkansas | H111: 51 | I111: Ajuste en Reembolso por funeral Exento | J111: 2017-01-06
B112: CA | C112: USA | D112: California | H112: 52 | I112: Ajuste en Cuotas de seguridad social pagadas por el patrón Exento | J112: 2017-01-06
B113: NC | C113: USA | D113: Carolina del Norte | H113: 53 | I113: Ajuste en Comisiones Gravado | J113: 2017-01-06
B114: SC | C114: USA | D114: Carolina del Sur | H114: 54 | I114: Ajuste en Vales de despensa Exento | J114: 2017-01-06
B115: CO | C115: USA | D115: Colorado | H115: 55 | I115: Ajuste en Vales de restaurante Exento | J115: 2017-01-06
B116: CT | C116: USA | D116: Connecticut | H116: 56 | I116: Ajuste en Vales de gasolina Exento | J116: 2017-01-06
B117: ND | C117: USA | D117: Dakota del Norte | H117: 57 | I117: Ajuste en Vales de ropa Exento | J117: 2017-01-06
B118: SD | C118: USA | D118: Dakota del Sur | H118: 58 | I118: Ajuste en Ayuda para renta Exento | J118: 2017-01-06
B119: DE | C119: USA | D119: Delaware | H119: 59 | I119: Ajuste en Ayuda para artículos escolares Exento | J119: 2017-01-06
B120: FL | C120: USA | D120: Florida | H120: 60 | I120: Ajuste en Ayuda para anteojos Exento | J120: 2017-01-06
B121: GA | C121: USA | D121: Georgia | H121: 61 | I121: Ajuste en Ayuda para transporte Exento | J121: 2017-01-06
B122: HI | C122: USA | D122: Hawái | H122: 62 | I122: Ajuste en Ayuda para gastos de funeral Exento | J122: 2017-01-06
B123: ID | C123: USA | D123: Idaho | H123: 63 | I123: Ajuste en Otros ingresos por salarios Exento | J123: 2017-01-06
B124: IL | C124: USA | D124: Illinois | H124: 64 | I124: Ajuste en Otros ingresos por salarios Gravado | J124: 2017-01-06
B125: IN | C125: USA | D125: Indiana | H125: 65 | I125: Ajuste en Jubilaciones, pensiones o haberes de retiro en una sola exhibición Exento | J125: 2018-10-15
B126: IA | C126: USA | D126: Iowa | H126: 66 | I126: Ajuste en Jubilaciones, pensiones o haberes de retiro en una sola exhibición Gravado | J126: 2018-10-15
B127: KS | C127: USA | D127: Kansas | H127: 67 | I127: Ajuste en Pagos por separación Acumulable | J127: 2017-01-06
B128: KY | C128: USA | D128: Kentucky | H128: 68 | I128: Ajuste en Pagos por separación No acumulable | J128: 2017-01-06
B129: LA | C129: USA | D129: Luisiana | H129: 69 | I129: Ajuste en Jubilaciones, pensiones o haberes de retiro en parcialidades Exento | J129: 2018-10-15
B130: ME | C130: USA | D130: Maine | H130: 70 | I130: Ajuste en Jubilaciones, pensiones o haberes de retiro en parcialidades Gravado | J130: 2018-10-15
B131: MD | C131: USA | D131: Maryland | H131: 71 | I131: Ajuste en Subsidio para el empleo (efectivamente entregado al trabajador) | J131: 2017-01-06
B132: MA | C132: USA | D132: Massachusetts | H132: 72 | I132: Ajuste en Ingresos en acciones o títulos valor que representan bienes Exento | J132: 2017-01-06 | K132: 2018-10-14
B133: MI | C133: USA | D133: Míchigan | H133: 73 | I133: Ajuste en Ingresos en acciones o títulos valor que representan bienes Gravado | J133: 2017-01-06
B134: MN | C134: USA | D134: Minnesota | H134: 74 | I134: Ajuste en Alimentación Exento | J134: 2017-01-06
B135: MS | C135: USA | D135: Misisipi | H135: 75 | I135: Ajuste en Alimentación Gravado | J135: 2017-01-06
B136: MO | C136: USA | D136: Misuri | H136: 76 | I136: Ajuste en Habitación Exento | J136: 2017-01-06
B137: MT | C137: USA | D137: Montana | H137: 77 | I137: Ajuste en Habitación Gravado | J137: 2017-01-06
B138: NE | C138: USA | D138: Nebraska | H138: 78 | I138: Ajuste en Premios por asistencia | J138: 2017-01-06
B139: NV | C139: USA | D139: Nevada | H139: 79 | I139: Ajuste en Pagos distintos a los listados y que no deben considerarse como ingreso por sueldos, salarios o ingresos asimilados. | J139: 2017-01-06
B140: NJ | C140: USA | D140: Nueva Jersey | H140: 80 | I140: Ajuste en Viáticos gravados | J140: 2017-01-06
B141: NY | C141: USA | D141: Nueva York | H141: 81 | I141: Ajuste en Viáticos (entregados al trabajador) | J141: 2017-01-06
B142: NH | C142: USA | D142: Nuevo Hampshire | H142: 082 | I142: Ajuste en Fondo de ahorro Gravado | J142: 2017-01-06
B143: NM | C143: USA | D143: Nuevo México | H143: 083 | I143: Ajuste en Caja de ahorro Gravado | J143: 2017-01-06
B144: OH | C144: USA | D144: Ohio | H144: 084 | I144: Ajuste en Prima de Seguro de vida Gravado | J144: 2017-01-06
B145: OK | C145: USA | D145: Oklahoma | H145: 085 | I145: Ajuste en Seguro de Gastos Médicos Mayores Gravado | J145: 2017-01-06
B146: OR | C146: USA | D146: Oregón | H146: 086 | I146: Ajuste en Subsidios por incapacidad Gravado | J146: 2017-01-06
B147: PA | C147: USA | D147: Pensilvania | H147: 087 | I147: Ajuste en Becas para trabajadores y/o hijos Gravado | J147: 2017-01-06
B148: RI | C148: USA | D148: Rhode Island | H148: 088 | I148: Ajuste en Seguro de retiro Gravado | J148: 2017-01-06
B149: TN | C149: USA | D149: Tennessee | H149: 089 | I149: Ajuste en Vales de despensa Gravado | J149: 2017-01-06
B150: TX | C150: USA | D150: Texas | H150: 090 | I150: Ajuste en Vales de restaurante Gravado | J150: 2017-01-06
B151: UT | C151: USA | D151: Utah | H151: 091 | I151: Ajuste en Vales de gasolina Gravado | J151: 2017-01-06
B152: VT | C152: USA | D152: Vermont | H152: 092 | I152: Ajuste en Vales de ropa Gravado | J152: 2017-01-06
B153: VA | C153: USA | D153: Virginia | H153: 093 | I153: Ajuste en Ayuda para renta Gravado | J153: 2017-01-06
B154: WV | C154: USA | D154: Virginia Occidental | H154: 094 | I154: Ajuste en Ayuda para artículos escolares Gravado | J154: 2017-01-06
B155: WA | C155: USA | D155: Washington | H155: 095 | I155: Ajuste en Ayuda para anteojos Gravado | J155: 2017-01-06
B156: WI | C156: USA | D156: Wisconsin | H156: 096 | I156: Ajuste en Ayuda para transporte Gravado | J156: 2017-01-06
B157: WY | C157: USA | D157: Wyoming | H157: 097 | I157: Ajuste en Ayuda para gastos de funeral Gravado | J157: 2017-01-06
B158: ON | C158: CAN | D158: Ontario | H158: 098 | I158: Ajuste a ingresos asimilados a salarios gravados | J158: 2017-01-06
B159: QC | C159: CAN | D159: Quebec | H159: 099 | I159: Ajuste a ingresos por sueldos y salarios gravados | J159: 2017-01-06
B160: NS | C160: CAN | D160: Nueva Escocia | H160: 100 | I160: Ajuste en Viáticos exentos | J160: 2017-01-06
B161: NB | C161: CAN | D161: Nuevo Brunswick | H161: 101 | I161: ISR Retenido de ejercicio anterior | J161: 2017-12-05
B162: MB | C162: CAN | D162: Manitoba | H162: 102 | I162: Ajuste a pagos por gratificaciones, primas, compensaciones, recompensas u otros a extrabajadores derivados de jubilación en parcialidades, gravados | J162: 2018-10-15
B163: BC | C163: CAN | D163: Columbia Británica | H163: 103 | I163: Ajuste a pagos que se realicen a extrabajadores que obtengan una jubilación en parcialidades derivados de la ejecución de una resolución judicial o de un laudo gravados | J163: 2018-10-15
B164: PE | C164: CAN | D164: Isla del Príncipe Eduardo | H164: 104 | I164: Ajuste a pagos que se realicen a extrabajadores que obtengan una jubilación en parcialidades derivados de la ejecución de una resolución judicial o de un laudo exentos | J164: 2018-10-15
B165: SK | C165: CAN | D165: Saskatchewan | H165: 105 | I165: Ajuste a pagos que se realicen a extrabajadores que obtengan una jubilación en una sola exhibición derivados de la ejecución de una resolución judicial o de un laudo gravados | J165: 2018-10-15
B166: AB | C166: CAN | D166: Alberta | H166: 106 | I166: Ajuste a pagos que se realicen a extrabajadores que obtengan una jubilación en una sola exhibición derivados de la ejecución de una resolución judicial o de un laudo exentos | J166: 2018-10-15
B167: NL | C167: CAN | D167: Terranova y Labrador
B168: NT | C168: CAN | D168: Territorios del Noroeste
B169: YT | C169: CAN | D169: Yukón
B170: UN | C170: CAN | D170: Nunavut
B185: c_TipoPercepcion | C185: Descripción | D185: Gravado | E185: Exento | F185: Régimen | G185: Régimen consula | H185: c_TipoRegimen | I185: Descripción
B186: 1 | C186: Sueldos, Salarios Rayas y Jornales | D186: a | E186: r | F186: 2 | G186: =F186-B186 -> 1 | H186: 2 | I186: Sueldos (Incluye ingresos señalados en la fracción I del artículo 94 de LISR) | J186: 2
B187: 2 | C187: Gratificación Anual (Aguinaldo) | D187: a | E187: a | F187: 2 | G187: =F187-B187 -> 0 | H187: 3 | I187: Jubilados | J187: 3412
B188: 3 | C188: Participación de los Trabajadores en las Utilidades PTU | D188: a | E188: a | F188: 2 | G188: -1 | H188: 4 | I188: Pensionados | J188: 3412
B189: 4 | C189: Reembolso de Gastos Médicos Dentales y Hospitalarios | D189: a | E189: a | F189: 2 | G189: -2 | H189: 5 | I189: Asimilados Miembros Sociedades Cooperativas Produccion | J189: 567891011
B190: 5 | C190: Fondo de Ahorro | D190: a | E190: a | F190: 2 | G190: -3 | H190: 6 | I190: Asimilados Integrantes Sociedades Asociaciones Civiles | J190: 567891011
B191: 6 | C191: Caja de ahorro | D191: a | E191: a | F191: 2 | G191: -4 | H191: 7 | I191: Asimilados Miembros consejos | J191: 567891011
B192: 9 | C192: Contribuciones a Cargo del Trabajador Pagadas por el Patrón | D192: a | E192: r | F192: 2 | G192: -7 | H192: 8 | I192: Asimilados comisionistas | J192: 567891011
B193: 10 | C193: Premios por puntualidad | D193: a | E193: r | F193: 2 | G193: -8 | H193: 9 | I193: Asimilados Honorarios | J193: 567891011
B194: 11 | C194: Prima de Seguro de vida | D194: a | E194: a | F194: 2 | G194: -9 | H194: 10 | I194: Asimilados acciones | J194: 567891011
B195: 12 | C195: Seguro de Gastos Médicos Mayores | D195: a | E195: a | F195: 2 | G195: -10 | H195: 11 | I195: Asimilados otros | J195: 567891011
B196: 13 | C196: Cuotas Sindicales Pagadas por el Patrón | D196: a | E196: a | F196: 2 | G196: -11 | H196: 12 | I196: Jubilados o Pensionados | J196: 3412
B197: 14 | C197: Subsidios por incapacidad | D197: a | E197: a | F197: 2 | G197: -12 | H197: 13 | I197: Indemnización o Separación | J197: 13
B198: 15 | C198: Becas para trabajadores y/o hijos | D198: a | E198: a | F198: 2 | G198: -13 | H198: 99 | I198: Otro Regimen | J198: 99
B199: 19 | C199: Horas extra | D199: a | E199: a | F199: 2 | G199: -17
B200: 20 | C200: Prima dominical | D200: a | E200: a | F200: 2 | G200: -18
B201: 21 | C201: Prima vacacional | D201: a | E201: a | F201: 2 | G201: -19
B202: 24 | C202: Seguro de retiro | D202: a | E202: a | F202: 2 | G202: -22
B203: 26 | C203: Reembolso por funeral | D203: a | E203: a | F203: 2 | G203: -24
B204: 27 | C204: Cuotas de seguridad social pagadas por el patrón | D204: r | E204: a | F204: 2 | G204: -25
B205: 28 | C205: Comisiones | D205: a | E205: r | F205: 2 | G205: -26
B206: 29 | C206: Vales de despensa | D206: a | E206: a | F206: 2 | G206: -27
B207: 30 | C207: Vales de restaurante | D207: a | E207: a | F207: 2 | G207: -28
B208: 31 | C208: Vales de gasolina | D208: a | E208: a | F208: 2 | G208: -29
B209: 32 | C209: Vales de ropa | D209: a | E209: a | F209: 2 | G209: -30
B210: 33 | C210: Ayuda para renta | D210: a | E210: a | F210: 2 | G210: -31
B211: 34 | C211: Ayuda para artículos escolares | D211: a | E211: a | F211: 2 | G211: -32
B212: 35 | C212: Ayuda para anteojos | D212: a | E212: a | F212: 2 | G212: -33
B213: 36 | C213: Ayuda para transporte | D213: a | E213: a | F213: 2 | G213: -34
B214: 37 | C214: Ayuda para gastos de funeral | D214: a | E214: a | F214: 2 | G214: -35
B215: 38 | C215: Otros ingresos por salarios | D215: a | E215: a | F215: 2 | G215: -36
B216: 47 | C216: Alimentación diferentes a los establecidos en el Art 94 último párrafo LISR | D216: a | E216: a | F216: 2 | G216: -45
B217: 48 | C217: Habitación | D217: a | E217: a | F217: 2 | G217: -46
... 12 more rows
